Workbook

Sheet Для печати
A2: Россия | F2: по ТО 5600-228200034786-005-2006 ГОСТ 16371-93
A3: Изготовитель: ИП Лукьянчикова В.В. | F3: Дата изготовления | J3: =TODAY() -> 2019-02-13
A4: Адрес: Алтайский край, г.Барнаул, | F4: Цвет | J4: =Расходник!B4 -> БЕЛЫЙ
A5: ул.Попова 256 г tel (3852) 55-34-67, 55-66-10 | F5: Упаковщик | J5: Гребнев
A6: http://furra.ru | F6: Упаковка __________ Упаковок ____________
A7: =Расходник!F1 -> 0 | F7: Гарантийный срок 24 месяца со дня продажи
F8: Срок службы 5 лет.
F9: Условия хранения, транспортировки, эксплуатации:
F10: в крытых помещениях при t+2С и относительной
A11: Корпусная мебель | F11: влажности 45-70%
A13: Россия | F13: по ТО 5600-228200034786-005-2006 ГОСТ 16371-93
A14: Изготовитель: ИП Лукьянчикова В.В. | F14: Дата изготовления | J14: =J3 -> 2019-02-13
A15: Адрес: Алтайский край, г.Барнаул, | F15: Цвет | J15: =J4 -> БЕЛЫЙ
A16: ул.Попова 256 г tel (3852) 55-34-67, 55-66-10 | F16: Упаковщик | J16: =J5 -> Гребнев
A17: http://furra.ru | F17: Упаковка __________ Упаковок ____________
A18: =A7 -> 0 | F18: Гарантийный срок 24 месяца со дня продажи
F19: Срок службы 5 лет.
F20: Условия хранения, транспортировки, эксплуатации:
F21: в крытых помещениях при t+2С и относительной
A22: Корпусная мебель | F22: влажности 45-70%
A24: Россия | F24: по ТО 5600-228200034786-005-2006 ГОСТ 16371-93
A25: Изготовитель: ИП Лукьянчикова В.В. | F25: Дата изготовления | J25: =J14 -> 2019-02-13
A26: Адрес: Алтайский край, г.Барнаул, | F26: Цвет | J26: =J4 -> БЕЛЫЙ
A27: ул.Попова 256 г tel (3852) 55-34-67, 55-66-10 | F27: Упаковщик | J27: =J16 -> Гребнев
A28: http://furra.ru | F28: Упаковка __________ Упаковок ____________
A29: =A18 -> 0 | F29: Гарантийный срок 24 месяца со дня продажи
F30: Срок службы 5 лет.
F31: Условия хранения, транспортировки, эксплуатации:
F32: в крытых помещениях при t+2С и относительной
A33: Корпусная мебель | F33: влажности 45-70%
A35: Россия | F35: по ТО 5600-228200034786-005-2006 ГОСТ 16371-93
A36: Изготовитель: ИП Лукьянчикова В.В. | F36: Дата изготовления | J36: =J25 -> 2019-02-13
A37: Адрес: Алтайский край, г.Барнаул, | F37: Цвет | J37: =J15 -> БЕЛЫЙ
A38: ул.Попова 256 г tel (3852) 55-34-67, 55-66-10 | F38: Упаковщик | J38: =J27 -> Гребнев
A39: http://furra.ru | F39: Упаковка __________ Упаковок ____________
A40: =A29 -> 0 | F40: Гарантийный срок 24 месяца со дня продажи
F41: Срок службы 5 лет.
F42: Условия хранения, транспортировки, эксплуатации:
F43: в крытых помещениях при t+2С и относительной
A44: Корпусная мебель | F44: влажности 45-70%
A48: tel (3852) 55-34-67, 55-66-10 http://furra.ru | B48: Россия | H48: tel (3852) 55-34-67, 55-66-10 http://furra.ru | I48: Россия
B49: Изготовитель: ИП Лукьянчикова В.В. | I49: Изготовитель: ИП Лукьянчикова В.В.
B50: Адрес: Алтайский край, г.Барнаул, ул.Попова, 256г. | I50: Адрес: Алтайский край, г.Барнаул, ул.Попова, 256г.
B51: =A7 -> 0 | I51: =B51 -> 0
B53: =A44 -> Корпусная мебель | I53: =B53 -> Корпусная мебель
B54: по ТО 5600-228200034786-005-2006 ГОСТ 16371-93 | I54: по ТО 5600-228200034786-005-2006 ГОСТ 16371-93
B55: Дата изготовления | E55: =J36 -> 2019-02-13 | I55: Дата изготовления | L55: =E55 -> 2019-02-13
B56: Гарантийный срок 24 месяца со дня продажи | I56: Гарантийный срок 24 месяца со дня продажи
B57: Срок службы 5 лет | I57: Срок службы 5 лет
B58: Условия хранения, транспортировки, эксплуатации: в крытых | I58: Условия хранения, транспортировки, эксплуатации: в крытых
B59: помещениях при t+2С и относительной влажности 45-70% | I59: помещениях при t+2С и относительной влажности 45-70%

Sheet Фурнитура
A1: ТМЦ | B1: Примечание | C1: Ед.
A2: МАТЕРИАЛЫ
A3: ЛДСП | C3: м2
A4: ЛДСП доп | C4: м2
A5: ЛМДФ мат | C5: м2
A6: ЛМДФ гл | C6: м2
A7: ЛМДФ мет | C7: м2
A8: ДСП | C8: м2
A9: ДВПО | C9: м2
A10: ДВП | C10: м2
A11: Столешница | C11: м/п
A12: Стеновая панель | C12: м/п
A13: Оргалит | C13: м2
A14: Зеркало | C14: м2
A15: Стекло рифл Роса | C15: м2
A16: Стекло рифл Ниагара | C16: м2
A17: Стекло рифл Ледовый хруст | C17: м2
A18: Стекло Сатин | C18: м2
A19: Стекло бр | C19: м2
A20: Стекло б/цв | C20: м2
A22: КРОМКА
A23: ПВХ 0,4*19 | C23: м/п
A24: ПВХ 2,0*19 | C24: м/п
A25: ПВХ 0,4*35 | C25: м/п
A26: ПВХ 2,0*35 | C26: м/п
A27: ПВХ 0,4*19 R | C27: м/п
A28: ПВХ 2,0*19 R | C28: м/п
A29: ПВХ 0,4*35 R | C29: м/п
A30: ПВХ 2,0*35 R | C30: м/п
A31: Меламин 35 | C31: м/п
A32: Меламин | C32: м/п
A34: МЕТИЗЫ
A35: Евровинт 7*50 | C35: шт
A36: Евровинт 7*70 | C36: шт
A37: Евровинт 5*50 | C37: шт
A38: Шуруп 3,5*12 | C38: шт
A39: Шуруп 3,5*16 | C39: шт
A40: Шуруп 3,5*20 | C40: шт
A41: Шуруп 4*16 | C41: шт
A42: Шуруп 4*20 | C42: шт
A43: Шуруп 4*25 | C43: шт
A44: Шуруп 4*30 | C44: шт
A45: Шуруп 4*35 | C45: шт
A46: Шуруп 4*40 | C46: шт
A47: Шуруп 4*60 | C47: шт
A48: Анкер 6*40 | C48: шт
A49: Винт М4*40 | C49: шт
A50: Винт М4*20 | C50: шт
A51: Винт М4*12 | C51: шт
A52: Винт М6*25 | C52: шт
A53: Винт М8*40 потай | C53: шт
A54: Шайба пластиковая под ручку | C54: шт
A55: Футорка М6 D10 | C55: шт
A56: Полкодержатель Flipper евровинт | C56: к-кт
A57: Полкодержатель Flipper гладкий | C57: к-кт
A58: Минификс | C58: шт
A59: Минификс 2-х сторонний | C59: шт
A60: Заглушка для минификса | C60: шт
A61: Шкант деревянный | B61: 8х30 | C61: шт
A62: Шкант пластиковый | B62: 8х30 | C62: шт
A63: Клей ПВА тюбик | C63: шт
A64: Винт М6*70 + гайка боченок | C64: шт
A65: Стяжка межсекционная D5 | C65: шт
A66: Стяжка межсекционная D8 | C66: шт
A67: Полкодержатель К5 | C67: шт
A68: Стеклодержатель | C68: шт
A69: Стеклодержатель К5 с присоской | C69: шт
A70: Стеклодержатель MV05 | C70: шт
A71: Гвоздь мебельный | B71: 1,2х25 | C71: шт
A72: Ключ шестигранный | C72: шт
A73: Подпятник мебельный | C73: шт
A74: Зеркалодержатель хром | B74: 4 шт | C74: к-кт
A75: Заглушка универсальная | C75: шт
A76: Заглушка самоклеющаяся | C76: шт
A77: Заглушка D10 | C77: шт
A78: Заглушка минификса | C78: шт
A79: Ласточкин Хвост | C79: шт
A80: Демпфлер силиконовый | C80: шт
A81: Толкатель PUSH-to-OPEN | C81: шт
A83: Уголки
A84: Уголок ФС-16 | C84: шт
A85: Уголок КОМАНДОР | C85: шт
A86: Уголок 422 | C86: шт
A87: Крепеж кроватный SAMET | C87: шт
A88: Прижим для крепления накладной мойки | C88: шт
A89: Планка ответная L-образная, 8х30 мм для замков | C89: шт
A91: НАВЕСЫ
A92: Профиль соединительный для ДВП 2 м/п | B92: 14 руб - 1 шт | C92: м/п
A93: Планка для навеса 2 м/п | C93: м/п
A94: Планка для навеса 2 м/п, крашенная | C94: м/п
A95: Навес регулируемый | C95: шт
A96: Навес нерегулируемый | C96: шт
A97: Подвеска-ушко | C97: шт
A99: ПОГОНАЖ
A100: Планка МДФ № 38-2,4м | C100: м/п
A101: Планка МДФ № 17-2,4м | C101: м/п
A102: Планка МДФ № 31/4-2,4м | C102: м/п
A103: Планка МДФ № 31/8-2,4м | C103: м/п
A104: Планка МДФ №12-2,4м | B104: Атлантида | C104: м/п
A105: Молдинг золото 7мм 2 м/п | B105: ЛЮКС | C105: м/п
A106: Соединитель молдинга золото 7мм | B106: ЛЮКС | C106: шт
A108: НАПРАВЛЯЮЩИЕ
A109: Направляющая роликовая 250 мм | C109: к-кт
A110: Направляющая роликовая 300 мм | C110: к-кт
A111: Направляющая роликовая 350 мм | C111: к-кт
A112: Направляющая роликовая 400 мм | C112: к-кт
A113: Направляющая роликовая 450 мм | C113: к-кт
A114: Направляющая роликовая 500 мм | C114: к-кт
A115: Направляющая роликовая 550 мм | C115: к-кт
A116: Направляющая Zn полного выдвижения 250 | C116: к-кт
A117: Направляющая Zn полного выдвижения 300 | C117: к-кт
A118: Направляющая Zn полного выдвижения 350 | C118: к-кт
A119: Направляющая Zn полного выдвижения 400 | C119: к-кт
A120: Направляющая Zn полного выдвижения 450 | C120: к-кт
A121: Направляющая Zn полного выдвижения 500 | C121: к-кт
A122: Направляющая Zn полного выдвижения 700 | C122: к-кт
A123: Направляющая Smart Slide 300мм + tip on | C123: к-кт
A124: Направляющая Smart Slide 350мм + tip on | C124: к-кт
A125: Направляющая Smart Slide 400мм + tip on | C125: к-кт
A126: Направляющая Smart Slide 450мм + tip on | C126: к-кт
A127: Направляющая Smart Slide 500мм + tip on | C127: к-кт
A128: Направляющая д/клав 350мм | C128: к-кт
A129: Направляющая GTV скрытого монтажа 300 | C129: к-кт
A130: Направляющая GTV скрытого монтажа 350 | C130: к-кт
A131: Направляющая GTV скрытого монтажа 400 | C131: к-кт
A132: Направляющая GTV скрытого монтажа 450 | C132: к-кт
A133: Направляющая GTV скрытого монтажа 500 | C133: к-кт
A135: ПЕТЛИ
A136: Петля наружная | C136: шт
A137: Петля наружная с доводчиком | C137: шт
A138: Петля внутренная | C138: шт
A139: Петля внутренная с доводчиком | C139: шт
A140: Петля пол-торца | C140: шт
A141: Петля пол-торца с доводчиком | C141: шт
A142: Петля 135 гр. | C142: шт
A143: Петля 135 гр. с доводчиком | C143: шт
A144: Петля инверсная | C144: шт
A145: Петля инверсная с доводчиком | C145: шт
A146: Планка клиновая для монтажной планки 10 гр | C146: шт
A147: Петля для откидной створки | C147: шт
A148: Петля карточная 36*50 | C148: шт
A149: Комплект для 1-ой стекл. двери, хром с лифтом | C149: к-кт
A150: Лифт механический GTV | C150: шт
A151: Газ-лифт 50Н | C151: шт
A152: Газ-лифт 80Н | C152: шт
A153: Шарнир барный никель | C153: шт
A155: РУЧКИ
A156: Ручка 76 мм керамика | B156: Ольга | C156: шт
A157: Ручка 96 мм керамика | B157: Ольга | C157: шт
A158: Ручка-кнопка керамика | B158: Ольга | C158: шт
A159: Ручка-кнопка керамика в бронзе | B159: Ольга | C159: шт
A160: Ручка врезная хром матовый 128 мм | B160: Модерн | C160: шт
A161: Ручка пластик золото, ВСК бежевый АМ-01/1 | B161: Стенка ЛЮКС | C161: шт
A162: Ручка пластик золото, ВСК дуб темный АМ-03/1 | B162: Стенка ЛЮКС | C162: шт
A163: Ручка пластик золото, ВСК терракот АМ-04/1 | B163: Стенка ЛЮКС | C163: шт
A164: Ручка-кнопка C0230 | B164: Лилия | C164: шт
A165: Ручка FM-054 032 Cr матовый | B165: Омега | C165: шт
A166: Ручка FM-070/000 | C166: шт
A167: Ручка 2-я ДУГА 128 | C167: шт
A168: Ручка-рейлинг 128 | C168: шт
A169: Ручка-рейлинг 160 | C169: шт
A170: Ручка-рейлинг 192 | B170: Таис | C170: шт
A171: Ручка-рейлинг 224 | C171: шт
A172: Ручка-рейлинг 256 | C172: шт
A173: Ручка-рейлинг 288 | C173: шт
A174: Ручка-рейлинг 320 | C174: шт
A175: Ручка-рейлинг 352 | C175: шт
A176: Ручка-рейлинг 384 | C176: шт
A177: Ручка-рейлинг 416 | C177: шт
A178: Ручка-рейлинг 448 | C178: шт
A179: Ручка-рейлинг 480 | C179: шт
A180: Ручка-рейлинг РЛ-160/1 пластик, алюм. Мат. | B180: Олимп | C180: шт
A181: Ручка-скоба 5710/160 (25) | B181: Кухни FRESH | C181: шт
A182: Ручка-скоба (перфорация) S0240/96, хром | B182: Кухни СС | C182: шт
A183: Ручка-скоба (бабочка) S0540/128 | B183: Калипсо | C183: шт
A184: Ручка-скоба (бабочка) S0540/96 | C184: шт
A185: Ручка-скоба С-03 (АБС пластик алюм. мат.) | B185: Престиж | C185: шт
A186: Ручка FS-116/128 | C186: шт
A187: Ручка FS-140/096, старая бронза | B187: Татьяна | C187: шт
A188: Ручка RC 026 AB-3 | B188: Татьяна | C188: шт
A189: Ручка-кнопка RC 017 | B189: Модерн ЛЮКС | C189: шт
A190: Ручка-кнопка LM БЬЯНКА | C190: шт
A191: Ручка-рейлинг РСКН-128 | C191: шт
A192: Ручка-скоба | C192: шт
A193: Ручка-кнопка | C193: шт
A194: Ручка-рейлинг | C194: шт
A196: КРЮЧКИ
A197: Крючок 2-х рожк
A198: Крючок 3-х рожк
A199: Крючок Дуга 2-х рожк, хром | C199: шт
A200: Крючок Дуга 3-х рожк, хром | C200: шт
A201: Крючек 0240 3-х хром, хром | C201: шт
A202: Крючок K206SC | C202: шт
A203: Крючек Перфорация 2-х рожк, хром | B203: Кухни СС | C203: шт
A204: Крючек Перфорация 3-х рожк, хром | C204: шт
A206: ОПОРЫ
A207: Опора 100-130 мм, белая | B207: Кухни СС | C207: шт
A208: Планка + клипса для опоры | C208: к-т
A209: Опора колесная 30 | C209: шт
A210: Опора 75-105 мм, белая | B210: Эльбрус | C210: шт
... 92 more rows

Sheet Наряд на работу
A1: НАРЯД НА РАБОТУ
A3: Задание № | B3: =Расходник!C1 -> 0 | F3: Запущен | G3: =TODAY() -> 2019-02-13
A4: Цвет | B4: =Расходник!B4 -> БЕЛЫЙ | C4: =IF(D4<>0,"&"," ") ->  | D4: =Расходник!B5 -> 0 | F4: Готовность
A5: Состав | B5: =Расходник!D1&" "&Расходник!G1&" х "&Расходник!H1 -> Кровать "БАРИН" 1400 х 2000 | F5: =Расходник!I1 -> 1 | G5: шт
A7: Участок / Операция | C7: Тариф | D7: Объем | F7: Выполнил | G7: Проверил
A8: РАСПИЛОВКА | B8: ЛДСП SEL. | C8: 20.6 | D8: м² | E8: =IF(Расходник!D4+Расходник!D5=0," ",Расходник!D4+Расходник!D5) -> 2.108852
B9: ДСП | C9: 4.7 | D9: м² | E9: =IF(Расходник!D8=0," ",Расходник!D8) -> 4.85556
B10: ДВПО | C10: 4.1 | D10: м² | E10: =IF(Расходник!D9=0," ",Расходник!D9) -> 2.768128
B11: Спил | C11: 14 | D11: шт | E11: =IF(Расходник!N5=0," ",Расходник!N5) -> 
B12: Пропил | C12: 3.6 | D12: м/п | E12: =IF(Расходник!N6=0," ",Расходник!N6) -> 
B13: Столешница / стен.пан. | C13: 7.6 | D13: шт | E13: =IF(Расходник!N7=0," ",Расходник!N7) -> 
A15: КРОМКО-ОБЛИЦОВКА | B15: ПВХ 2,0х19 | C15: 2.3 | D15: м/п | E15: =IF(Расходник!I5=0," ",Расходник!I5) -> 
B16: ПВХ 0,4х19 | C16: 2.3 | D16: м/п | E16: =IF(Расходник!I4=0," ",Расходник!I4) -> 10.9618
B17: ПВХ 2,0х35 | C17: 3.5 | D17: м/п | E17: =IF(Расходник!I7=0," ",Расходник!I7) -> 
B18: ПВХ 0,4х35 / Меламин 35 | C18: 2.3 | D18: м/п | E18: =IF(Расходник!I6+Расходник!I12=0," ",Расходник!I6+Расходник!I12) -> 
B19: На криволинейнике | C19: 7.4 | D19: м/п | E19: =IF(SUM(Расходник!I4:I14)=0," ",SUM(Расходник!I4:I14)) -> 10.9618
B20: Индивидуалка | C20: 4.7 | D20: м/п
A22: ФРЕЗЕРОВКА | B22: Серия (фрез-ка + кром-ка) | C22: 13.7 | D22: м/п
B23: Инд-ка (фр-ка + кром-ка) | C23: 24.2 | D23: м/п
B24: Врезка бытовой техники | C24: 25 | D24: м/п
B25: Декор фр-ки фасадов | C25: 13 | D25: шт
B26: Фрезеровка ручная серия | C26: 6.3 | D26: м/п | E26: =IF(SUM(Расходник!I8:I11)=0," ",SUM(Расходник!I8:I11)) -> 
A28: СВЕРЛОВКА | B28: Сверловка инд-ка ЛДСП | C28: 24.2 | D28: м² | E28: =IF(E41=0," ",E41) -> 2.108852
B29: Сверловка инд-ка МДФ | C29: 24.2 | D29: м² | E29: =IF(Расходник!D6+Расходник!D7=0," ",Расходник!D6+Расходник!D7) -> 
B30: Сверловка серия | C30: 10 | D30: м²
B31: Сверловка фасадов | C31: 2.1 | D31: шт
A33: СБОРКА ДВЕРЕЙ И РЕЗКА СТЕКЛА | B33: Резка стекла | C33: 1.8 | D33: м/п | E33: =IF(Расходник!N2+Расходник!N3+Расходник!N4=0," ",Расходник!N2+Расходник!N3+Расходник!N4) -> 
B34: Шлифовка стекла | C34: 6.8 | D34: м/п | E34: =E33 -> 
B35: Наклейка зеркала, мдф | C35: 8.9 | D35: шт
B36: МДФ 12,17,31,38 | C36: 54.6 | D36: шт
B37: Купе простые | C37: 210 | D37: шт
B38: Купе сложные | C38: 273 | D38: шт
B39: Сборка ортопед | C39: 50 | D39: шт
A41: УПАКОВКА | B41: Упаковка ЛДСП | C41: 15 | D41: м² | E41: =IF(Расходник!D4+Расходник!D5=0," ",Расходник!D4+Расходник!D5) -> 2.108852
B42: Упаковка ЛМДФ | C42: 2.6 | D42: шт | E42: =IF(Расходник!N8=0," ",Расходник!N8) -> 
B43: Столешница, мойка, сушка, стекло | C43: 2.6 | D43: шт | E43: =IF(Расходник!P3+Расходник!P4+Расходник!N7=0," ",Расходник!P3+Расходник!P4+Расходник!N7) -> 
A45: СБОРКА | B45: Сборка серия | C45: 40 | D45: м²
B46: Сборка индивидуалка | C46: 60 | D46: м² | E46: =Расходник!C4+Расходник!C5+Расходник!C6+Расходник!C7 -> 2.108852
B47: Изготовление кровати | C47: 2100 | D47: м² | E47: =F5 -> 1
B48: Короб под бельё | C48: 250 | D48: м² | E48: =E47 -> 1
B49: Сращивание деталей | C49: 30 | D49: шт
B50: Монтаж бытовой техники | C50: 30 | D50: шт
B51: Установка планок | C51: 10 | D51: шт
E53: Технолог | F53: Григоренко А.Н.
A54: Комментарии к заказу

Sheet Деталировка
B1: =Расходник!D1 -> Кровать "БАРИН" | C1: =Расходник!G1 -> 1400 | D1: x | E1: =Расходник!H1 -> 2000 | K1: Комманда для макроса копирования строк Ctrl+R
B2: =Расходник!F1 -> 0 | C2: =Расходник!I1 -> 1 | H2: =Расходник!C1 -> 0
A3: № | B3: деталь | C3: размер 1 | E3: размер 2 | F3: кол-во | G3: материал | H3: примечание | I3: на 1 | J3: Спил 1 | L3: Спил 2 | M3: Пер-р | N3: Проп-л | P3: Sлдсп | Q3: Lпвх0,4 | R3: Lпвх2,0 | S3: Lпвх0,4R | T3: Lпвх2,0R | U3: Постф-нг
A4: =(ROW()-3)/2+0.5 -> 1 | B4: =IF(Вводные!A5=0," ",Вводные!A5) -> Кровать | C4: =IF(Вводные!H5+Вводные!I5=0," ",Вводные!H5+Вводные!I5) ->  | D4: * | E4: =IF(Вводные!F5+Вводные!G5=0," ",Вводные!F5+Вводные!G5) ->  | F4: =$C$2*I4 -> 2 | G4: =Вводные!E5 -> дсп | I4: =Вводные!D5 -> 2 | K4: =(IF(L4>0,1,0)+IF(L5>0,1,0))*I4 -> 0 | M4: =(C5*2+E5*2)/1000*I4 -> 9.24 | N4: 0 | O4: =IF(N4=1,C5,IF(N4=2,C5*2,0))*I4/1000 -> 0 | P4: =C5*E5*I4/1000000 -> 1.206 | Q4: =(IF(C4=1,C5,(IF(C4=2,C5*2,(IF(C4="1+R",C5,(IF(C4="1+кр",C5,(IF(C4="1+Rкр",C5,0)))))))))*I4/1000) -> 0 | R4: =(IF(C4="кр",C5,(IF(C4="2кр",C5*2,(IF(C4="1+кр",C5,0)))))*I4/1000) -> 0 | S4: =(IF(C4="R",C5,(IF(C4="2R",C5*2,(IF(C4="1+R",C5,0)))))*I4/1000) -> 0 | T4: =(IF(C4="Rкр",C5,(IF(C4="2Rкр",C5*2,(IF(C4="1+Rкр",C5,0)))))*I4/1000) -> 0 | U4: =C5/1000 -> 2.01
C5: =Вводные!B5 -> 2010 | E5: =Вводные!C5 -> 300 | K5: =(IF(J4>0,1,0)+IF(J5>0,1,0))*I4 -> 0 | N5: 0 | O5: =IF(N5=1,E5,IF(N5=2,E5*2,0))*I4/1000 -> 0 | Q5: =(IF(E4=1,E5,(IF(E4=2,E5*2,(IF(E4="1+R",E5,(IF(E4="1+кр",E5,(IF(E4="1+Rкр",E5,0)))))))))*I4/1000) -> 0 | R5: =(IF(E4="кр",E5,(IF(E4="2кр",E5*2,(IF(E4="1+кр",E5,0)))))*I4/1000) -> 0 | S5: =(IF(E4="R",E5,(IF(E4="2R",E5*2,(IF(E4="1+R",E5,0)))))*I4/1000) -> 0 | T5: =(IF(E4="Rкр",E5,(IF(E4="2Rкр",E5*2,(IF(E4="1+Rкр",E5,0)))))*I4/1000) -> 0
A6: =(ROW()-3)/2+0.5 -> 2 | B6: =IF(Вводные!A7=0," ",Вводные!A7) -> Кровать | C6: =IF(Вводные!H7+Вводные!I7=0," ",Вводные!H7+Вводные!I7) ->  | D6: * | E6: =IF(Вводные!F7+Вводные!G7=0," ",Вводные!F7+Вводные!G7) ->  | F6: =$C$2*I6 -> 1 | G6: =Вводные!E7 -> дсп | I6: =Вводные!D7 -> 1 | K6: =(IF(L6>0,1,0)+IF(L7>0,1,0))*I6 -> 0 | M6: =(C7*2+E7*2)/1000*I6 -> 3.488 | N6: 0 | O6: =IF(N6=1,C7,IF(N6=2,C7*2,0))*I6/1000 -> 0 | P6: =C7*E7*I6/1000000 -> 0.4332 | Q6: =(IF(C6=1,C7,(IF(C6=2,C7*2,(IF(C6="1+R",C7,(IF(C6="1+кр",C7,(IF(C6="1+Rкр",C7,0)))))))))*I6/1000) -> 0 | R6: =(IF(C6="кр",C7,(IF(C6="2кр",C7*2,(IF(C6="1+кр",C7,0)))))*I6/1000) -> 0 | S6: =(IF(C6="R",C7,(IF(C6="2R",C7*2,(IF(C6="1+R",C7,0)))))*I6/1000) -> 0 | T6: =(IF(C6="Rкр",C7,(IF(C6="2Rкр",C7*2,(IF(C6="1+Rкр",C7,0)))))*I6/1000) -> 0 | U6: =C7/1000 -> 1.444
C7: =Вводные!B7 -> 1444 | E7: =Вводные!C7 -> 300 | K7: =(IF(J6>0,1,0)+IF(J7>0,1,0))*I6 -> 0 | N7: 0 | O7: =IF(N7=1,E7,IF(N7=2,E7*2,0))*I6/1000 -> 0 | Q7: =(IF(E6=1,E7,(IF(E6=2,E7*2,(IF(E6="1+R",E7,(IF(E6="1+кр",E7,(IF(E6="1+Rкр",E7,0)))))))))*I6/1000) -> 0 | R7: =(IF(E6="кр",E7,(IF(E6="2кр",E7*2,(IF(E6="1+кр",E7,0)))))*I6/1000) -> 0 | S7: =(IF(E6="R",E7,(IF(E6="2R",E7*2,(IF(E6="1+R",E7,0)))))*I6/1000) -> 0 | T7: =(IF(E6="Rкр",E7,(IF(E6="2Rкр",E7*2,(IF(E6="1+Rкр",E7,0)))))*I6/1000) -> 0
A8: =(ROW()-3)/2+0.5 -> 3 | B8: =IF(Вводные!A9=0," ",Вводные!A9) -> Кровать | C8: =IF(Вводные!H9+Вводные!I9=0," ",Вводные!H9+Вводные!I9) ->  | D8: * | E8: =IF(Вводные!F9+Вводные!G9=0," ",Вводные!F9+Вводные!G9) ->  | F8: =$C$2*I8 -> 1 | G8: =Вводные!E9 -> дсп | I8: =Вводные!D9 -> 1 | K8: =(IF(L8>0,1,0)+IF(L9>0,1,0))*I8 -> 0 | M8: =(C9*2+E9*2)/1000*I8 -> 3.83 | N8: 0 | O8: =IF(N8=1,C9,IF(N8=2,C9*2,0))*I8/1000 -> 0 | P8: =C9*E9*I8/1000000 -> 0.6438 | Q8: =(IF(C8=1,C9,(IF(C8=2,C9*2,(IF(C8="1+R",C9,(IF(C8="1+кр",C9,(IF(C8="1+Rкр",C9,0)))))))))*I8/1000) -> 0 | R8: =(IF(C8="кр",C9,(IF(C8="2кр",C9*2,(IF(C8="1+кр",C9,0)))))*I8/1000) -> 0 | S8: =(IF(C8="R",C9,(IF(C8="2R",C9*2,(IF(C8="1+R",C9,0)))))*I8/1000) -> 0 | T8: =(IF(C8="Rкр",C9,(IF(C8="2Rкр",C9*2,(IF(C8="1+Rкр",C9,0)))))*I8/1000) -> 0 | U8: =C9/1000 -> 1.48
C9: =Вводные!B9 -> 1480 | E9: =Вводные!C9 -> 435 | K9: =(IF(J8>0,1,0)+IF(J9>0,1,0))*I8 -> 0 | N9: 0 | O9: =IF(N9=1,E9,IF(N9=2,E9*2,0))*I8/1000 -> 0 | Q9: =(IF(E8=1,E9,(IF(E8=2,E9*2,(IF(E8="1+R",E9,(IF(E8="1+кр",E9,(IF(E8="1+Rкр",E9,0)))))))))*I8/1000) -> 0 | R9: =(IF(E8="кр",E9,(IF(E8="2кр",E9*2,(IF(E8="1+кр",E9,0)))))*I8/1000) -> 0 | S9: =(IF(E8="R",E9,(IF(E8="2R",E9*2,(IF(E8="1+R",E9,0)))))*I8/1000) -> 0 | T9: =(IF(E8="Rкр",E9,(IF(E8="2Rкр",E9*2,(IF(E8="1+Rкр",E9,0)))))*I8/1000) -> 0
A10: =(ROW()-3)/2+0.5 -> 4 | B10: =IF(Вводные!A11=0," ",Вводные!A11) -> Кровать | C10: =IF(Вводные!H11+Вводные!I11=0," ",Вводные!H11+Вводные!I11) ->  | D10: * | E10: =IF(Вводные!F11+Вводные!G11=0," ",Вводные!F11+Вводные!G11) ->  | F10: =$C$2*I10 -> 1 | G10: =Вводные!E11 -> дсп | I10: =Вводные!D11 -> 1 | K10: =(IF(L10>0,1,0)+IF(L11>0,1,0))*I10 -> 0 | M10: =(C11*2+E11*2)/1000*I10 -> 3.21 | N10: 0 | O10: =IF(N10=1,C11,IF(N10=2,C11*2,0))*I10/1000 -> 0 | P10: =C11*E11*I10/1000000 -> 0.185 | Q10: =(IF(C10=1,C11,(IF(C10=2,C11*2,(IF(C10="1+R",C11,(IF(C10="1+кр",C11,(IF(C10="1+Rкр",C11,0)))))))))*I10/1000) -> 0 | R10: =(IF(C10="кр",C11,(IF(C10="2кр",C11*2,(IF(C10="1+кр",C11,0)))))*I10/1000) -> 0 | S10: =(IF(C10="R",C11,(IF(C10="2R",C11*2,(IF(C10="1+R",C11,0)))))*I10/1000) -> 0 | T10: =(IF(C10="Rкр",C11,(IF(C10="2Rкр",C11*2,(IF(C10="1+Rкр",C11,0)))))*I10/1000) -> 0 | U10: =C11/1000 -> 1.48
C11: =Вводные!B11 -> 1480 | E11: =Вводные!C11 -> 125 | K11: =(IF(J10>0,1,0)+IF(J11>0,1,0))*I10 -> 0 | N11: 0 | O11: =IF(N11=1,E11,IF(N11=2,E11*2,0))*I10/1000 -> 0 | Q11: =(IF(E10=1,E11,(IF(E10=2,E11*2,(IF(E10="1+R",E11,(IF(E10="1+кр",E11,(IF(E10="1+Rкр",E11,0)))))))))*I10/1000) -> 0 | R11: =(IF(E10="кр",E11,(IF(E10="2кр",E11*2,(IF(E10="1+кр",E11,0)))))*I10/1000) -> 0 | S11: =(IF(E10="R",E11,(IF(E10="2R",E11*2,(IF(E10="1+R",E11,0)))))*I10/1000) -> 0 | T11: =(IF(E10="Rкр",E11,(IF(E10="2Rкр",E11*2,(IF(E10="1+Rкр",E11,0)))))*I10/1000) -> 0
A12: =(ROW()-3)/2+0.5 -> 5 | B12: =IF(Вводные!A13=0," ",Вводные!A13) -> Кровать | C12: =IF(Вводные!H13+Вводные!I13=0," ",Вводные!H13+Вводные!I13) ->  | D12: * | E12: =IF(Вводные!F13+Вводные!G13=0," ",Вводные!F13+Вводные!G13) ->  | F12: =$C$2*I12 -> 1 | G12: =Вводные!E13 -> дсп | I12: =Вводные!D13 -> 1 | K12: =(IF(L12>0,1,0)+IF(L13>0,1,0))*I12 -> 0 | M12: =(C13*2+E13*2)/1000*I12 -> 3.16 | N12: 0 | O12: =IF(N12=1,C13,IF(N12=2,C13*2,0))*I12/1000 -> 0 | P12: =C13*E13*I12/1000000 -> 0.148 | Q12: =(IF(C12=1,C13,(IF(C12=2,C13*2,(IF(C12="1+R",C13,(IF(C12="1+кр",C13,(IF(C12="1+Rкр",C13,0)))))))))*I12/1000) -> 0 | R12: =(IF(C12="кр",C13,(IF(C12="2кр",C13*2,(IF(C12="1+кр",C13,0)))))*I12/1000) -> 0 | S12: =(IF(C12="R",C13,(IF(C12="2R",C13*2,(IF(C12="1+R",C13,0)))))*I12/1000) -> 0 | T12: =(IF(C12="Rкр",C13,(IF(C12="2Rкр",C13*2,(IF(C12="1+Rкр",C13,0)))))*I12/1000) -> 0 | U12: =C13/1000 -> 1.48
C13: =Вводные!B13 -> 1480 | E13: =Вводные!C13 -> 100 | K13: =(IF(J12>0,1,0)+IF(J13>0,1,0))*I12 -> 0 | N13: 0 | O13: =IF(N13=1,E13,IF(N13=2,E13*2,0))*I12/1000 -> 0 | Q13: =(IF(E12=1,E13,(IF(E12=2,E13*2,(IF(E12="1+R",E13,(IF(E12="1+кр",E13,(IF(E12="1+Rкр",E13,0)))))))))*I12/1000) -> 0 | R13: =(IF(E12="кр",E13,(IF(E12="2кр",E13*2,(IF(E12="1+кр",E13,0)))))*I12/1000) -> 0 | S13: =(IF(E12="R",E13,(IF(E12="2R",E13*2,(IF(E12="1+R",E13,0)))))*I12/1000) -> 0 | T13: =(IF(E12="Rкр",E13,(IF(E12="2Rкр",E13*2,(IF(E12="1+Rкр",E13,0)))))*I12/1000) -> 0
A14: =(ROW()-3)/2+0.5 -> 6 | B14: =IF(Вводные!A15=0," ",Вводные!A15) -> Кровать | C14: =IF(Вводные!H15+Вводные!I15=0," ",Вводные!H15+Вводные!I15) ->  | D14: * | E14: =IF(Вводные!F15+Вводные!G15=0," ",Вводные!F15+Вводные!G15) ->  | F14: =$C$2*I14 -> 1 | G14: =Вводные!E15 -> дсп | I14: =Вводные!D15 -> 1 | K14: =(IF(L14>0,1,0)+IF(L15>0,1,0))*I14 -> 0 | M14: =(C15*2+E15*2)/1000*I14 -> 3.056 | N14: 0 | O14: =IF(N14=1,C15,IF(N14=2,C15*2,0))*I14/1000 -> 0 | P14: =C15*E15*I14/1000000 -> 0.1428 | Q14: =(IF(C14=1,C15,(IF(C14=2,C15*2,(IF(C14="1+R",C15,(IF(C14="1+кр",C15,(IF(C14="1+Rкр",C15,0)))))))))*I14/1000) -> 0 | R14: =(IF(C14="кр",C15,(IF(C14="2кр",C15*2,(IF(C14="1+кр",C15,0)))))*I14/1000) -> 0 | S14: =(IF(C14="R",C15,(IF(C14="2R",C15*2,(IF(C14="1+R",C15,0)))))*I14/1000) -> 0 | T14: =(IF(C14="Rкр",C15,(IF(C14="2Rкр",C15*2,(IF(C14="1+Rкр",C15,0)))))*I14/1000) -> 0 | U14: =C15/1000 -> 1.428
C15: =Вводные!B15 -> 1428 | E15: =Вводные!C15 -> 100 | K15: =(IF(J14>0,1,0)+IF(J15>0,1,0))*I14 -> 0 | N15: 0 | O15: =IF(N15=1,E15,IF(N15=2,E15*2,0))*I14/1000 -> 0 | Q15: =(IF(E14=1,E15,(IF(E14=2,E15*2,(IF(E14="1+R",E15,(IF(E14="1+кр",E15,(IF(E14="1+Rкр",E15,0)))))))))*I14/1000) -> 0 | R15: =(IF(E14="кр",E15,(IF(E14="2кр",E15*2,(IF(E14="1+кр",E15,0)))))*I14/1000) -> 0 | S15: =(IF(E14="R",E15,(IF(E14="2R",E15*2,(IF(E14="1+R",E15,0)))))*I14/1000) -> 0 | T15: =(IF(E14="Rкр",E15,(IF(E14="2Rкр",E15*2,(IF(E14="1+Rкр",E15,0)))))*I14/1000) -> 0
A16: =(ROW()-3)/2+0.5 -> 7 | B16: =IF(Вводные!A17=0," ",Вводные!A17) -> Кровать | C16: =IF(Вводные!H17+Вводные!I17=0," ",Вводные!H17+Вводные!I17) ->  | D16: * | E16: =IF(Вводные!F17+Вводные!G17=0," ",Вводные!F17+Вводные!G17) ->  | F16: =$C$2*I16 -> 2 | G16: =Вводные!E17 -> дсп | I16: =Вводные!D17 -> 2 | K16: =(IF(L16>0,1,0)+IF(L17>0,1,0))*I16 -> 0 | M16: =(C17*2+E17*2)/1000*I16 -> 6.032 | N16: 0 | O16: =IF(N16=1,C17,IF(N16=2,C17*2,0))*I16/1000 -> 0 | P16: =C17*E17*I16/1000000 -> 0.22848 | Q16: =(IF(C16=1,C17,(IF(C16=2,C17*2,(IF(C16="1+R",C17,(IF(C16="1+кр",C17,(IF(C16="1+Rкр",C17,0)))))))))*I16/1000) -> 0 | R16: =(IF(C16="кр",C17,(IF(C16="2кр",C17*2,(IF(C16="1+кр",C17,0)))))*I16/1000) -> 0 | S16: =(IF(C16="R",C17,(IF(C16="2R",C17*2,(IF(C16="1+R",C17,0)))))*I16/1000) -> 0 | T16: =(IF(C16="Rкр",C17,(IF(C16="2Rкр",C17*2,(IF(C16="1+Rкр",C17,0)))))*I16/1000) -> 0 | U16: =C17/1000 -> 1.428
C17: =Вводные!B17 -> 1428 | E17: =Вводные!C17 -> 80 | K17: =(IF(J16>0,1,0)+IF(J17>0,1,0))*I16 -> 0 | N17: 0 | O17: =IF(N17=1,E17,IF(N17=2,E17*2,0))*I16/1000 -> 0 | Q17: =(IF(E16=1,E17,(IF(E16=2,E17*2,(IF(E16="1+R",E17,(IF(E16="1+кр",E17,(IF(E16="1+Rкр",E17,0)))))))))*I16/1000) -> 0 | R17: =(IF(E16="кр",E17,(IF(E16="2кр",E17*2,(IF(E16="1+кр",E17,0)))))*I16/1000) -> 0 | S17: =(IF(E16="R",E17,(IF(E16="2R",E17*2,(IF(E16="1+R",E17,0)))))*I16/1000) -> 0 | T17: =(IF(E16="Rкр",E17,(IF(E16="2Rкр",E17*2,(IF(E16="1+Rкр",E17,0)))))*I16/1000) -> 0
A18: =(ROW()-3)/2+0.5 -> 8 | B18: =IF(Вводные!A19=0," ",Вводные!A19) -> Кровать | C18: =IF(Вводные!H19+Вводные!I19=0," ",Вводные!H19+Вводные!I19) ->  | D18: * | E18: =IF(Вводные!F19+Вводные!G19=0," ",Вводные!F19+Вводные!G19) ->  | F18: =$C$2*I18 -> 1 | G18: =Вводные!E19 -> дсп | I18: =Вводные!D19 -> 1 | K18: =(IF(L18>0,1,0)+IF(L19>0,1,0))*I18 -> 0 | M18: =(C19*2+E19*2)/1000*I18 -> 2.976 | N18: 0 | O18: =IF(N18=1,C19,IF(N18=2,C19*2,0))*I18/1000 -> 0 | P18: =C19*E19*I18/1000000 -> 0.08568 | Q18: =(IF(C18=1,C19,(IF(C18=2,C19*2,(IF(C18="1+R",C19,(IF(C18="1+кр",C19,(IF(C18="1+Rкр",C19,0)))))))))*I18/1000) -> 0 | R18: =(IF(C18="кр",C19,(IF(C18="2кр",C19*2,(IF(C18="1+кр",C19,0)))))*I18/1000) -> 0 | S18: =(IF(C18="R",C19,(IF(C18="2R",C19*2,(IF(C18="1+R",C19,0)))))*I18/1000) -> 0 | T18: =(IF(C18="Rкр",C19,(IF(C18="2Rкр",C19*2,(IF(C18="1+Rкр",C19,0)))))*I18/1000) -> 0 | U18: =C19/1000 -> 1.428
C19: =Вводные!B19 -> 1428 | E19: =Вводные!C19 -> 60 | K19: =(IF(J18>0,1,0)+IF(J19>0,1,0))*I18 -> 0 | N19: 0 | O19: =IF(N19=1,E19,IF(N19=2,E19*2,0))*I18/1000 -> 0 | Q19: =(IF(E18=1,E19,(IF(E18=2,E19*2,(IF(E18="1+R",E19,(IF(E18="1+кр",E19,(IF(E18="1+Rкр",E19,0)))))))))*I18/1000) -> 0 | R19: =(IF(E18="кр",E19,(IF(E18="2кр",E19*2,(IF(E18="1+кр",E19,0)))))*I18/1000) -> 0 | S19: =(IF(E18="R",E19,(IF(E18="2R",E19*2,(IF(E18="1+R",E19,0)))))*I18/1000) -> 0 | T19: =(IF(E18="Rкр",E19,(IF(E18="2Rкр",E19*2,(IF(E18="1+Rкр",E19,0)))))*I18/1000) -> 0
A20: =(ROW()-3)/2+0.5 -> 9 | B20: =IF(Вводные!A21=0," ",Вводные!A21) -> Кровать | C20: =IF(Вводные!H21+Вводные!I21=0," ",Вводные!H21+Вводные!I21) ->  | D20: * | E20: =IF(Вводные!F21+Вводные!G21=0," ",Вводные!F21+Вводные!G21) ->  | F20: =$C$2*I20 -> 1 | G20: =Вводные!E21 -> дсп | I20: =Вводные!D21 -> 1 | K20: =(IF(L20>0,1,0)+IF(L21>0,1,0))*I20 -> 0 | M20: =(C21*2+E21*2)/1000*I20 -> 3.42 | N20: 0 | O20: =IF(N20=1,C21,IF(N20=2,C21*2,0))*I20/1000 -> 0 | P20: =C21*E21*I20/1000000 -> 0.423 | Q20: =(IF(C20=1,C21,(IF(C20=2,C21*2,(IF(C20="1+R",C21,(IF(C20="1+кр",C21,(IF(C20="1+Rкр",C21,0)))))))))*I20/1000) -> 0 | R20: =(IF(C20="кр",C21,(IF(C20="2кр",C21*2,(IF(C20="1+кр",C21,0)))))*I20/1000) -> 0 | S20: =(IF(C20="R",C21,(IF(C20="2R",C21*2,(IF(C20="1+R",C21,0)))))*I20/1000) -> 0 | T20: =(IF(C20="Rкр",C21,(IF(C20="2Rкр",C21*2,(IF(C20="1+Rкр",C21,0)))))*I20/1000) -> 0 | U20: =C21/1000 -> 1.41
C21: =Вводные!B21 -> 1410 | E21: =Вводные!C21 -> 300 | K21: =(IF(J20>0,1,0)+IF(J21>0,1,0))*I20 -> 0 | N21: 0 | O21: =IF(N21=1,E21,IF(N21=2,E21*2,0))*I20/1000 -> 0 | Q21: =(IF(E20=1,E21,(IF(E20=2,E21*2,(IF(E20="1+R",E21,(IF(E20="1+кр",E21,(IF(E20="1+Rкр",E21,0)))))))))*I20/1000) -> 0 | R21: =(IF(E20="кр",E21,(IF(E20="2кр",E21*2,(IF(E20="1+кр",E21,0)))))*I20/1000) -> 0 | S21: =(IF(E20="R",E21,(IF(E20="2R",E21*2,(IF(E20="1+R",E21,0)))))*I20/1000) -> 0 | T21: =(IF(E20="Rкр",E21,(IF(E20="2Rкр",E21*2,(IF(E20="1+Rкр",E21,0)))))*I20/1000) -> 0
A22: =(ROW()-3)/2+0.5 -> 10 | B22: =IF(Вводные!A23=0," ",Вводные!A23) -> Кровать | C22: =IF(Вводные!H23+Вводные!I23=0," ",Вводные!H23+Вводные!I23) ->  | D22: * | E22: =IF(Вводные!F23+Вводные!G23=0," ",Вводные!F23+Вводные!G23) ->  | F22: =$C$2*I22 -> 2 | G22: =Вводные!E23 -> дсп | I22: =Вводные!D23 -> 2 | K22: =(IF(L22>0,1,0)+IF(L23>0,1,0))*I22 -> 0 | M22: =(C23*2+E23*2)/1000*I22 -> 2.272 | N22: 0 | O22: =IF(N22=1,C23,IF(N22=2,C23*2,0))*I22/1000 -> 0 | P22: =C23*E23*I22/1000000 -> 0.1254 | Q22: =(IF(C22=1,C23,(IF(C22=2,C23*2,(IF(C22="1+R",C23,(IF(C22="1+кр",C23,(IF(C22="1+Rкр",C23,0)))))))))*I22/1000) -> 0 | R22: =(IF(C22="кр",C23,(IF(C22="2кр",C23*2,(IF(C22="1+кр",C23,0)))))*I22/1000) -> 0 | S22: =(IF(C22="R",C23,(IF(C22="2R",C23*2,(IF(C22="1+R",C23,0)))))*I22/1000) -> 0 | T22: =(IF(C22="Rкр",C23,(IF(C22="2Rкр",C23*2,(IF(C22="1+Rкр",C23,0)))))*I22/1000) -> 0 | U22: =C23/1000 -> 0.418
C23: =Вводные!B23 -> 418 | E23: =Вводные!C23 -> 150 | K23: =(IF(J22>0,1,0)+IF(J23>0,1,0))*I22 -> 0 | N23: 0 | O23: =IF(N23=1,E23,IF(N23=2,E23*2,0))*I22/1000 -> 0 | Q23: =(IF(E22=1,E23,(IF(E22=2,E23*2,(IF(E22="1+R",E23,(IF(E22="1+кр",E23,(IF(E22="1+Rкр",E23,0)))))))))*I22/1000) -> 0 | R23: =(IF(E22="кр",E23,(IF(E22="2кр",E23*2,(IF(E22="1+кр",E23,0)))))*I22/1000) -> 0 | S23: =(IF(E22="R",E23,(IF(E22="2R",E23*2,(IF(E22="1+R",E23,0)))))*I22/1000) -> 0 | T23: =(IF(E22="Rкр",E23,(IF(E22="2Rкр",E23*2,(IF(E22="1+Rкр",E23,0)))))*I22/1000) -> 0
A24: =(ROW()-3)/2+0.5 -> 11 | B24: =IF(Вводные!A25=0," ",Вводные!A25) -> Кровать | C24: =IF(Вводные!H25+Вводные!I25=0," ",Вводные!H25+Вводные!I25) ->  | D24: * | E24: =IF(Вводные!F25+Вводные!G25=0," ",Вводные!F25+Вводные!G25) ->  | F24: =$C$2*I24 -> 2 | G24: =Вводные!E25 -> дсп | I24: =Вводные!D25 -> 2 | K24: =(IF(L24>0,1,0)+IF(L25>0,1,0))*I24 -> 0 | M24: =(C25*2+E25*2)/1000*I24 -> 4.56 | N24: 0 | O24: =IF(N24=1,C25,IF(N24=2,C25*2,0))*I24/1000 -> 0 | P24: =C25*E25*I24/1000000 -> 0.297 | Q24: =(IF(C24=1,C25,(IF(C24=2,C25*2,(IF(C24="1+R",C25,(IF(C24="1+кр",C25,(IF(C24="1+Rкр",C25,0)))))))))*I24/1000) -> 0 | R24: =(IF(C24="кр",C25,(IF(C24="2кр",C25*2,(IF(C24="1+кр",C25,0)))))*I24/1000) -> 0 | S24: =(IF(C24="R",C25,(IF(C24="2R",C25*2,(IF(C24="1+R",C25,0)))))*I24/1000) -> 0 | T24: =(IF(C24="Rкр",C25,(IF(C24="2Rкр",C25*2,(IF(C24="1+Rкр",C25,0)))))*I24/1000) -> 0 | U24: =C25/1000 -> 0.99
C25: =Вводные!B25 -> 990 | E25: =Вводные!C25 -> 150 | K25: =(IF(J24>0,1,0)+IF(J25>0,1,0))*I24 -> 0 | N25: 0 | O25: =IF(N25=1,E25,IF(N25=2,E25*2,0))*I24/1000 -> 0 | Q25: =(IF(E24=1,E25,(IF(E24=2,E25*2,(IF(E24="1+R",E25,(IF(E24="1+кр",E25,(IF(E24="1+Rкр",E25,0)))))))))*I24/1000) -> 0 | R25: =(IF(E24="кр",E25,(IF(E24="2кр",E25*2,(IF(E24="1+кр",E25,0)))))*I24/1000) -> 0 | S25: =(IF(E24="R",E25,(IF(E24="2R",E25*2,(IF(E24="1+R",E25,0)))))*I24/1000) -> 0 | T25: =(IF(E24="Rкр",E25,(IF(E24="2Rкр",E25*2,(IF(E24="1+Rкр",E25,0)))))*I24/1000) -> 0
A26: =(ROW()-3)/2+0.5 -> 12 | B26: =IF(Вводные!A27=0," ",Вводные!A27) -> Кровать | C26: =IF(Вводные!H27+Вводные!I27=0," ",Вводные!H27+Вводные!I27) ->  | D26: * | E26: =IF(Вводные!F27+Вводные!G27=0," ",Вводные!F27+Вводные!G27) ->  | F26: =$C$2*I26 -> 1 | G26: =Вводные!E27 -> дсп | I26: =Вводные!D27 -> 1 | K26: =(IF(L26>0,1,0)+IF(L27>0,1,0))*I26 -> 0 | M26: =(C27*2+E27*2)/1000*I26 -> 2.188 | N26: 0 | O26: =IF(N26=1,C27,IF(N26=2,C27*2,0))*I26/1000 -> 0 | P26: =C27*E27*I26/1000000 -> 0.1416 | Q26: =(IF(C26=1,C27,(IF(C26=2,C27*2,(IF(C26="1+R",C27,(IF(C26="1+кр",C27,(IF(C26="1+Rкр",C27,0)))))))))*I26/1000) -> 0 | R26: =(IF(C26="кр",C27,(IF(C26="2кр",C27*2,(IF(C26="1+кр",C27,0)))))*I26/1000) -> 0 | S26: =(IF(C26="R",C27,(IF(C26="2R",C27*2,(IF(C26="1+R",C27,0)))))*I26/1000) -> 0 | T26: =(IF(C26="Rкр",C27,(IF(C26="2Rкр",C27*2,(IF(C26="1+Rкр",C27,0)))))*I26/1000) -> 0 | U26: =C27/1000 -> 0.944
C27: =Вводные!B27 -> 944 | E27: =Вводные!C27 -> 150 | K27: =(IF(J26>0,1,0)+IF(J27>0,1,0))*I26 -> 0 | N27: 0 | O27: =IF(N27=1,E27,IF(N27=2,E27*2,0))*I26/1000 -> 0 | Q27: =(IF(E26=1,E27,(IF(E26=2,E27*2,(IF(E26="1+R",E27,(IF(E26="1+кр",E27,(IF(E26="1+Rкр",E27,0)))))))))*I26/1000) -> 0 | R27: =(IF(E26="кр",E27,(IF(E26="2кр",E27*2,(IF(E26="1+кр",E27,0)))))*I26/1000) -> 0 | S27: =(IF(E26="R",E27,(IF(E26="2R",E27*2,(IF(E26="1+R",E27,0)))))*I26/1000) -> 0 | T27: =(IF(E26="Rкр",E27,(IF(E26="2Rкр",E27*2,(IF(E26="1+Rкр",E27,0)))))*I26/1000) -> 0
A28: =(ROW()-3)/2+0.5 -> 13 | B28: =IF(Вводные!A29=0," ",Вводные!A29) -> Кровать 10мм | C28: =IF(Вводные!H29+Вводные!I29=0," ",Вводные!H29+Вводные!I29) ->  | D28: * | E28: =IF(Вводные!F29+Вводные!G29=0," ",Вводные!F29+Вводные!G29) ->  | F28: =$C$2*I28 -> 2 | G28: =Вводные!E29 -> дсп | I28: =Вводные!D29 -> 2 | K28: =(IF(L28>0,1,0)+IF(L29>0,1,0))*I28 -> 0 | M28: =(C29*2+E29*2)/1000*I28 -> 4.48 | N28: 0 | O28: =IF(N28=1,C29,IF(N28=2,C29*2,0))*I28/1000 -> 0 | P28: =C29*E29*I28/1000000 -> 0.2574 | Q28: =(IF(C28=1,C29,(IF(C28=2,C29*2,(IF(C28="1+R",C29,(IF(C28="1+кр",C29,(IF(C28="1+Rкр",C29,0)))))))))*I28/1000) -> 0 | R28: =(IF(C28="кр",C29,(IF(C28="2кр",C29*2,(IF(C28="1+кр",C29,0)))))*I28/1000) -> 0 | S28: =(IF(C28="R",C29,(IF(C28="2R",C29*2,(IF(C28="1+R",C29,0)))))*I28/1000) -> 0 | T28: =(IF(C28="Rкр",C29,(IF(C28="2Rкр",C29*2,(IF(C28="1+Rкр",C29,0)))))*I28/1000) -> 0 | U28: =C29/1000 -> 0.99
C29: =Вводные!B29 -> 990 | E29: =Вводные!C29 -> 130 | K29: =(IF(J28>0,1,0)+IF(J29>0,1,0))*I28 -> 0 | N29: 0 | O29: =IF(N29=1,E29,IF(N29=2,E29*2,0))*I28/1000 -> 0 | Q29: =(IF(E28=1,E29,(IF(E28=2,E29*2,(IF(E28="1+R",E29,(IF(E28="1+кр",E29,(IF(E28="1+Rкр",E29,0)))))))))*I28/1000) -> 0 | R29: =(IF(E28="кр",E29,(IF(E28="2кр",E29*2,(IF(E28="1+кр",E29,0)))))*I28/1000) -> 0 | S29: =(IF(E28="R",E29,(IF(E28="2R",E29*2,(IF(E28="1+R",E29,0)))))*I28/1000) -> 0 | T29: =(IF(E28="Rкр",E29,(IF(E28="2Rкр",E29*2,(IF(E28="1+Rкр",E29,0)))))*I28/1000) -> 0
A30: =(ROW()-3)/2+0.5 -> 14 | B30: =IF(Вводные!A31=0," ",Вводные!A31) -> Кровать | C30: =IF(Вводные!H31+Вводные!I31=0," ",Вводные!H31+Вводные!I31) ->  | D30: * | E30: =IF(Вводные!F31+Вводные!G31=0," ",Вводные!F31+Вводные!G31) ->  | F30: =$C$2*I30 -> 1 | G30: =Вводные!E31 -> дсп | I30: =Вводные!D31 -> 1 | K30: =(IF(L30>0,1,0)+IF(L31>0,1,0))*I30 -> 0 | M30: =(C31*2+E31*2)/1000*I30 -> 3.26 | N30: 0 | O30: =IF(N30=1,C31,IF(N30=2,C31*2,0))*I30/1000 -> 0 | P30: =C31*E31*I30/1000000 -> 0.5382 | Q30: =(IF(C30=1,C31,(IF(C30=2,C31*2,(IF(C30="1+R",C31,(IF(C30="1+кр",C31,(IF(C30="1+Rкр",C31,0)))))))))*I30/1000) -> 0 | R30: =(IF(C30="кр",C31,(IF(C30="2кр",C31*2,(IF(C30="1+кр",C31,0)))))*I30/1000) -> 0 | S30: =(IF(C30="R",C31,(IF(C30="2R",C31*2,(IF(C30="1+R",C31,0)))))*I30/1000) -> 0 | T30: =(IF(C30="Rкр",C31,(IF(C30="2Rкр",C31*2,(IF(C30="1+Rкр",C31,0)))))*I30/1000) -> 0 | U30: =C31/1000 -> 1.17
C31: =Вводные!B31 -> 1170 | E31: =Вводные!C31 -> 460 | K31: =(IF(J30>0,1,0)+IF(J31>0,1,0))*I30 -> 0 | N31: 0 | O31: =IF(N31=1,E31,IF(N31=2,E31*2,0))*I30/1000 -> 0 | Q31: =(IF(E30=1,E31,(IF(E30=2,E31*2,(IF(E30="1+R",E31,(IF(E30="1+кр",E31,(IF(E30="1+Rкр",E31,0)))))))))*I30/1000) -> 0 | R31: =(IF(E30="кр",E31,(IF(E30="2кр",E31*2,(IF(E30="1+кр",E31,0)))))*I30/1000) -> 0 | S31: =(IF(E30="R",E31,(IF(E30="2R",E31*2,(IF(E30="1+R",E31,0)))))*I30/1000) -> 0 | T31: =(IF(E30="Rкр",E31,(IF(E30="2Rкр",E31*2,(IF(E30="1+Rкр",E31,0)))))*I30/1000) -> 0
A32: =(ROW()-3)/2+0.5 -> 15 | B32: =IF(Вводные!A39=0," ",Вводные!A39) -> ящик бельё | C32: =IF(Вводные!H39+Вводные!I39=0," ",Вводные!H39+Вводные!I39) -> 1 | D32: * | E32: =IF(Вводные!F39+Вводные!G39=0," ",Вводные!F39+Вводные!G39) ->  | F32: =$C$2*I32 -> 4 | G32: =Вводные!E39 -> лдсп | H32: для ящика под бельё /16 | I32: =Вводные!D39 -> 4 | K32: =(IF(L32>0,1,0)+IF(L33>0,1,0))*I32 -> 0 | M32: =(C33*2+E33*2)/1000*I32 -> 12.72 | N32: 0 | O32: =IF(N32=1,C33,IF(N32=2,C33*2,0))*I32/1000 -> 0 | P32: =C33*E33*I32/1000000 -> 1.0152 | Q32: =(IF(C32=1,C33,(IF(C32=2,C33*2,(IF(C32="1+R",C33,(IF(C32="1+кр",C33,(IF(C32="1+Rкр",C33,0)))))))))*I32/1000) -> 5.64 | R32: =(IF(C32="кр",C33,(IF(C32="2кр",C33*2,(IF(C32="1+кр",C33,0)))))*I32/1000) -> 0 | S32: =(IF(C32="R",C33,(IF(C32="2R",C33*2,(IF(C32="1+R",C33,0)))))*I32/1000) -> 0 | T32: =(IF(C32="Rкр",C33,(IF(C32="2Rкр",C33*2,(IF(C32="1+Rкр",C33,0)))))*I32/1000) -> 0 | U32: =C33/1000 -> 1.41
C33: =Вводные!B39 -> 1410 | E33: =Вводные!C39 -> 180 | K33: =(IF(J32>0,1,0)+IF(J33>0,1,0))*I32 -> 0 | N33: 0 | O33: =IF(N33=1,E33,IF(N33=2,E33*2,0))*I32/1000 -> 0 | Q33: =(IF(E32=1,E33,(IF(E32=2,E33*2,(IF(E32="1+R",E33,(IF(E32="1+кр",E33,(IF(E32="1+Rкр",E33,0)))))))))*I32/1000) -> 0 | R33: =(IF(E32="кр",E33,(IF(E32="2кр",E33*2,(IF(E32="1+кр",E33,0)))))*I32/1000) -> 0 | S33: =(IF(E32="R",E33,(IF(E32="2R",E33*2,(IF(E32="1+R",E33,0)))))*I32/1000) -> 0 | T33: =(IF(E32="Rкр",E33,(IF(E32="2Rкр",E33*2,(IF(E32="1+Rкр",E33,0)))))*I32/1000) -> 0
A34: =(ROW()-3)/2+0.5 -> 16 | B34: =IF(Вводные!A41=0," ",Вводные!A41) -> ящик бельё | C34: =IF(Вводные!H41+Вводные!I41=0," ",Вводные!H41+Вводные!I41) -> 1 | D34: * | E34: =IF(Вводные!F41+Вводные!G41=0," ",Вводные!F41+Вводные!G41) ->  | F34: =$C$2*I34 -> 4 | G34: =Вводные!E41 -> лдсп | I34: =Вводные!D41 -> 4 | K34: =(IF(L34>0,1,0)+IF(L35>0,1,0))*I34 -> 0 | M34: =(C35*2+E35*2)/1000*I34 -> 9.072 | N34: 0 | O34: =IF(N34=1,C35,IF(N34=2,C35*2,0))*I34/1000 -> 0 | P34: =C35*E35*I34/1000000 -> 0.626612 | Q34: =(IF(C34=1,C35,(IF(C34=2,C35*2,(IF(C34="1+R",C35,(IF(C34="1+кр",C35,(IF(C34="1+Rкр",C35,0)))))))))*I34/1000) -> 3.892 | R34: =(IF(C34="кр",C35,(IF(C34="2кр",C35*2,(IF(C34="1+кр",C35,0)))))*I34/1000) -> 0 | S34: =(IF(C34="R",C35,(IF(C34="2R",C35*2,(IF(C34="1+R",C35,0)))))*I34/1000) -> 0 | T34: =(IF(C34="Rкр",C35,(IF(C34="2Rкр",C35*2,(IF(C34="1+Rкр",C35,0)))))*I34/1000) -> 0 | U34: =C35/1000 -> 0.973
C35: =Вводные!B41 -> 973 | E35: =Вводные!C41 -> 161 | K35: =(IF(J34>0,1,0)+IF(J35>0,1,0))*I34 -> 0 | N35: 0 | O35: =IF(N35=1,E35,IF(N35=2,E35*2,0))*I34/1000 -> 0 | Q35: =(IF(E34=1,E35,(IF(E34=2,E35*2,(IF(E34="1+R",E35,(IF(E34="1+кр",E35,(IF(E34="1+Rкр",E35,0)))))))))*I34/1000) -> 0 | R35: =(IF(E34="кр",E35,(IF(E34="2кр",E35*2,(IF(E34="1+кр",E35,0)))))*I34/1000) -> 0 | S35: =(IF(E34="R",E35,(IF(E34="2R",E35*2,(IF(E34="1+R",E35,0)))))*I34/1000) -> 0 | T35: =(IF(E34="Rкр",E35,(IF(E34="2Rкр",E35*2,(IF(E34="1+Rкр",E35,0)))))*I34/1000) -> 0
A36: =(ROW()-3)/2+0.5 -> 17 | B36: =IF(Вводные!A43=0," ",Вводные!A43) -> ящик бельё | C36: =IF(Вводные!H43+Вводные!I43=0," ",Вводные!H43+Вводные!I43) ->  | D36: * | E36: =IF(Вводные!F43+Вводные!G43=0," ",Вводные!F43+Вводные!G43) ->  | F36: =$C$2*I36 -> 4 | G36: =Вводные!E43 -> лдсп | I36: =Вводные!D43 -> 4 | K36: =(IF(L36>0,1,0)+IF(L37>0,1,0))*I36 -> 0 | M36: =(C37*2+E37*2)/1000*I36 -> 8.424 | N36: 0 | O36: =IF(N36=1,C37,IF(N36=2,C37*2,0))*I36/1000 -> 0 | P36: =C37*E37*I36/1000000 -> 0.31136 | Q36: =(IF(C36=1,C37,(IF(C36=2,C37*2,(IF(C36="1+R",C37,(IF(C36="1+кр",C37,(IF(C36="1+Rкр",C37,0)))))))))*I36/1000) -> 0 | R36: =(IF(C36="кр",C37,(IF(C36="2кр",C37*2,(IF(C36="1+кр",C37,0)))))*I36/1000) -> 0 | S36: =(IF(C36="R",C37,(IF(C36="2R",C37*2,(IF(C36="1+R",C37,0)))))*I36/1000) -> 0 | T36: =(IF(C36="Rкр",C37,(IF(C36="2Rкр",C37*2,(IF(C36="1+Rкр",C37,0)))))*I36/1000) -> 0 | U36: =C37/1000 -> 0.973
C37: =Вводные!B43 -> 973 | E37: =Вводные!C43 -> 80 | K37: =(IF(J36>0,1,0)+IF(J37>0,1,0))*I36 -> 0 | N37: 0 | O37: =IF(N37=1,E37,IF(N37=2,E37*2,0))*I36/1000 -> 0 | Q37: =(IF(E36=1,E37,(IF(E36=2,E37*2,(IF(E36="1+R",E37,(IF(E36="1+кр",E37,(IF(E36="1+Rкр",E37,0)))))))))*I36/1000) -> 0 | R37: =(IF(E36="кр",E37,(IF(E36="2кр",E37*2,(IF(E36="1+кр",E37,0)))))*I36/1000) -> 0 | S37: =(IF(E36="R",E37,(IF(E36="2R",E37*2,(IF(E36="1+R",E37,0)))))*I36/1000) -> 0 | T37: =(IF(E36="Rкр",E37,(IF(E36="2Rкр",E37*2,(IF(E36="1+Rкр",E37,0)))))*I36/1000) -> 0
A38: =(ROW()-3)/2+0.5 -> 18 | B38: =IF(Вводные!A45=0," ",Вводные!A45) -> ящик бельё | C38: =IF(Вводные!H45+Вводные!I45=0," ",Вводные!H45+Вводные!I45) ->  | D38: * | E38: =IF(Вводные!F45+Вводные!G45=0," ",Вводные!F45+Вводные!G45) ->  | F38: =$C$2*I38 -> 2 | G38: =Вводные!E45 -> лдсп | I38: =Вводные!D45 -> 2 | K38: =(IF(L38>0,1,0)+IF(L39>0,1,0))*I38 -> 0 | M38: =(C39*2+E39*2)/1000*I38 -> 4.212 | N38: 0 | O38: =IF(N38=1,C39,IF(N38=2,C39*2,0))*I38/1000 -> 0 | P38: =C39*E39*I38/1000000 -> 0.15568 | Q38: =(IF(C38=1,C39,(IF(C38=2,C39*2,(IF(C38="1+R",C39,(IF(C38="1+кр",C39,(IF(C38="1+Rкр",C39,0)))))))))*I38/1000) -> 0 | R38: =(IF(C38="кр",C39,(IF(C38="2кр",C39*2,(IF(C38="1+кр",C39,0)))))*I38/1000) -> 0 | S38: =(IF(C38="R",C39,(IF(C38="2R",C39*2,(IF(C38="1+R",C39,0)))))*I38/1000) -> 0 | T38: =(IF(C38="Rкр",C39,(IF(C38="2Rкр",C39*2,(IF(C38="1+Rкр",C39,0)))))*I38/1000) -> 0 | U38: =C39/1000 -> 0.973
C39: =Вводные!B45 -> 973 | E39: =Вводные!C45 -> 80 | K39: =(IF(J38>0,1,0)+IF(J39>0,1,0))*I38 -> 0 | N39: 0 | O39: =IF(N39=1,E39,IF(N39=2,E39*2,0))*I38/1000 -> 0 | Q39: =(IF(E38=1,E39,(IF(E38=2,E39*2,(IF(E38="1+R",E39,(IF(E38="1+кр",E39,(IF(E38="1+Rкр",E39,0)))))))))*I38/1000) -> 0 | R39: =(IF(E38="кр",E39,(IF(E38="2кр",E39*2,(IF(E38="1+кр",E39,0)))))*I38/1000) -> 0 | S39: =(IF(E38="R",E39,(IF(E38="2R",E39*2,(IF(E38="1+R",E39,0)))))*I38/1000) -> 0 | T39: =(IF(E38="Rкр",E39,(IF(E38="2Rкр",E39*2,(IF(E38="1+Rкр",E39,0)))))*I38/1000) -> 0
A40: =(ROW()-3)/2+0.5 -> 19 | B40: =IF(Вводные!A47=0," ",Вводные!A47) -> ящик бельё | C40: =IF(Вводные!H47+Вводные!I47=0," ",Вводные!H47+Вводные!I47) ->  | D40: * | E40: =IF(Вводные!F47+Вводные!G47=0," ",Вводные!F47+Вводные!G47) ->  | F40: =$C$2*I40 -> 2 | G40: =Вводные!E47 -> двп | I40: =Вводные!D47 -> 2 | K40: =(IF(L40>0,1,0)+IF(L41>0,1,0))*I40 -> 0 | M40: =(C41*2+E41*2)/1000*I40 -> 9.564 | N40: 0 | O40: =IF(N40=1,C41,IF(N40=2,C41*2,0))*I40/1000 -> 0 | P40: =C41*E41*I40/1000000 -> 2.768128 | Q40: =(IF(C40=1,C41,(IF(C40=2,C41*2,(IF(C40="1+R",C41,(IF(C40="1+кр",C41,(IF(C40="1+Rкр",C41,0)))))))))*I40/1000) -> 0 | R40: =(IF(C40="кр",C41,(IF(C40="2кр",C41*2,(IF(C40="1+кр",C41,0)))))*I40/1000) -> 0 | S40: =(IF(C40="R",C41,(IF(C40="2R",C41*2,(IF(C40="1+R",C41,0)))))*I40/1000) -> 0 | T40: =(IF(C40="Rкр",C41,(IF(C40="2Rкр",C41*2,(IF(C40="1+Rкр",C41,0)))))*I40/1000) -> 0 | U40: =C41/1000 -> 1.408
C41: =Вводные!B47 -> 1408 | E41: =Вводные!C47 -> 983 | K41: =(IF(J40>0,1,0)+IF(J41>0,1,0))*I40 -> 0 | N41: 0 | O41: =IF(N41=1,E41,IF(N41=2,E41*2,0))*I40/1000 -> 0 | Q41: =(IF(E40=1,E41,(IF(E40=2,E41*2,(IF(E40="1+R",E41,(IF(E40="1+кр",E41,(IF(E40="1+Rкр",E41,0)))))))))*I40/1000) -> 0 | R41: =(IF(E40="кр",E41,(IF(E40="2кр",E41*2,(IF(E40="1+кр",E41,0)))))*I40/1000) -> 0 | S41: =(IF(E40="R",E41,(IF(E40="2R",E41*2,(IF(E40="1+R",E41,0)))))*I40/1000) -> 0 | T41: =(IF(E40="Rкр",E41,(IF(E40="2Rкр",E41*2,(IF(E40="1+Rкр",E41,0)))))*I40/1000) -> 0
A42: =(ROW()-3)/2+0.5 -> 20 | B42: =IF(Вводные!A49=0," ",Вводные!A49) ->  | C42: =IF(Вводные!H49+Вводные!I49=0," ",Вводные!H49+Вводные!I49) ->  | D42: * | E42: =IF(Вводные!F49+Вводные!G49=0," ",Вводные!F49+Вводные!G49) ->  | F42: =$C$2*I42 -> 0 | G42: =Вводные!E49 ->  | I42: =Вводные!D49 -> 0 | K42: =(IF(L42>0,1,0)+IF(L43>0,1,0))*I42 -> 0 | M42: =(C43*2+E43*2)/1000*I42 -> 0 | N42: 0 | O42: =IF(N42=1,C43,IF(N42=2,C43*2,0))*I42/1000 -> 0 | P42: =C43*E43*I42/1000000 -> 0 | Q42: =(IF(C42=1,C43,(IF(C42=2,C43*2,(IF(C42="1+R",C43,(IF(C42="1+кр",C43,(IF(C42="1+Rкр",C43,0)))))))))*I42/1000) -> 0 | R42: =(IF(C42="кр",C43,(IF(C42="2кр",C43*2,(IF(C42="1+кр",C43,0)))))*I42/1000) -> 0 | S42: =(IF(C42="R",C43,(IF(C42="2R",C43*2,(IF(C42="1+R",C43,0)))))*I42/1000) -> 0 | T42: =(IF(C42="Rкр",C43,(IF(C42="2Rкр",C43*2,(IF(C42="1+Rкр",C43,0)))))*I42/1000) -> 0 | U42: =C43/1000 -> 0
C43: =Вводные!B49 -> 0 | E43: =Вводные!C49 -> 0 | K43: =(IF(J42>0,1,0)+IF(J43>0,1,0))*I42 -> 0 | N43: 0 | O43: =IF(N43=1,E43,IF(N43=2,E43*2,0))*I42/1000 -> 0 | Q43: =(IF(E42=1,E43,(IF(E42=2,E43*2,(IF(E42="1+R",E43,(IF(E42="1+кр",E43,(IF(E42="1+Rкр",E43,0)))))))))*I42/1000) -> 0 | R43: =(IF(E42="кр",E43,(IF(E42="2кр",E43*2,(IF(E42="1+кр",E43,0)))))*I42/1000) -> 0 | S43: =(IF(E42="R",E43,(IF(E42="2R",E43*2,(IF(E42="1+R",E43,0)))))*I42/1000) -> 0 | T43: =(IF(E42="Rкр",E43,(IF(E42="2Rкр",E43*2,(IF(E42="1+Rкр",E43,0)))))*I42/1000) -> 0
A44: =(ROW()-3)/2+0.5 -> 21 | B44: =IF(Вводные!A51=0," ",Вводные!A51) ->  | C44: =IF(Вводные!H51+Вводные!I51=0," ",Вводные!H51+Вводные!I51) ->  | D44: * | E44: =IF(Вводные!F51+Вводные!G51=0," ",Вводные!F51+Вводные!G51) ->  | F44: =$C$2*I44 -> 0 | G44: =Вводные!E51 -> 0 | I44: =Вводные!D51 -> 0 | K44: =(IF(L44>0,1,0)+IF(L45>0,1,0))*I44 -> 0 | M44: =(C45*2+E45*2)/1000*I44 -> 0 | N44: 0 | O44: =IF(N44=1,C45,IF(N44=2,C45*2,0))*I44/1000 -> 0 | P44: =C45*E45*I44/1000000 -> 0 | Q44: =(IF(C44=1,C45,(IF(C44=2,C45*2,(IF(C44="1+R",C45,(IF(C44="1+кр",C45,(IF(C44="1+Rкр",C45,0)))))))))*I44/1000) -> 0 | R44: =(IF(C44="кр",C45,(IF(C44="2кр",C45*2,(IF(C44="1+кр",C45,0)))))*I44/1000) -> 0 | S44: =(IF(C44="R",C45,(IF(C44="2R",C45*2,(IF(C44="1+R",C45,0)))))*I44/1000) -> 0 | T44: =(IF(C44="Rкр",C45,(IF(C44="2Rкр",C45*2,(IF(C44="1+Rкр",C45,0)))))*I44/1000) -> 0 | U44: =C45/1000 -> 0
C45: =Вводные!B51 -> 0 | E45: =Вводные!C51 -> 0 | K45: =(IF(J44>0,1,0)+IF(J45>0,1,0))*I44 -> 0 | N45: 0 | O45: =IF(N45=1,E45,IF(N45=2,E45*2,0))*I44/1000 -> 0 | Q45: =(IF(E44=1,E45,(IF(E44=2,E45*2,(IF(E44="1+R",E45,(IF(E44="1+кр",E45,(IF(E44="1+Rкр",E45,0)))))))))*I44/1000) -> 0 | R45: =(IF(E44="кр",E45,(IF(E44="2кр",E45*2,(IF(E44="1+кр",E45,0)))))*I44/1000) -> 0 | S45: =(IF(E44="R",E45,(IF(E44="2R",E45*2,(IF(E44="1+R",E45,0)))))*I44/1000) -> 0 | T45: =(IF(E44="Rкр",E45,(IF(E44="2Rкр",E45*2,(IF(E44="1+Rкр",E45,0)))))*I44/1000) -> 0
A46: =(ROW()-3)/2+0.5 -> 22 | B46: =IF(Вводные!A53=0," ",Вводные!A53) ->  | C46: =IF(Вводные!H53+Вводные!I53=0," ",Вводные!H53+Вводные!I53) ->  | D46: * | E46: =IF(Вводные!F53+Вводные!G53=0," ",Вводные!F53+Вводные!G53) ->  | F46: =$C$2*I46 -> 0 | G46: =Вводные!E53 -> 0 | I46: =Вводные!D53 -> 0 | K46: =(IF(L46>0,1,0)+IF(L47>0,1,0))*I46 -> 0 | M46: =(C47*2+E47*2)/1000*I46 -> 0 | N46: 0 | O46: =IF(N46=1,C47,IF(N46=2,C47*2,0))*I46/1000 -> 0 | P46: =C47*E47*I46/1000000 -> 0 | Q46: =(IF(C46=1,C47,(IF(C46=2,C47*2,(IF(C46="1+R",C47,(IF(C46="1+кр",C47,(IF(C46="1+Rкр",C47,0)))))))))*I46/1000) -> 0 | R46: =(IF(C46="кр",C47,(IF(C46="2кр",C47*2,(IF(C46="1+кр",C47,0)))))*I46/1000) -> 0 | S46: =(IF(C46="R",C47,(IF(C46="2R",C47*2,(IF(C46="1+R",C47,0)))))*I46/1000) -> 0 | T46: =(IF(C46="Rкр",C47,(IF(C46="2Rкр",C47*2,(IF(C46="1+Rкр",C47,0)))))*I46/1000) -> 0 | U46: =C47/1000 -> 0
C47: =Вводные!B53 -> 0 | E47: =Вводные!C53 -> 0 | K47: =(IF(J46>0,1,0)+IF(J47>0,1,0))*I46 -> 0 | N47: 0 | O47: =IF(N47=1,E47,IF(N47=2,E47*2,0))*I46/1000 -> 0 | Q47: =(IF(E46=1,E47,(IF(E46=2,E47*2,(IF(E46="1+R",E47,(IF(E46="1+кр",E47,(IF(E46="1+Rкр",E47,0)))))))))*I46/1000) -> 0 | R47: =(IF(E46="кр",E47,(IF(E46="2кр",E47*2,(IF(E46="1+кр",E47,0)))))*I46/1000) -> 0 | S47: =(IF(E46="R",E47,(IF(E46="2R",E47*2,(IF(E46="1+R",E47,0)))))*I46/1000) -> 0 | T47: =(IF(E46="Rкр",E47,(IF(E46="2Rкр",E47*2,(IF(E46="1+Rкр",E47,0)))))*I46/1000) -> 0
A48: =(ROW()-3)/2+0.5 -> 23 | B48: =IF(Вводные!A55=0," ",Вводные!A55) ->  | C48: =IF(Вводные!H55+Вводные!I55=0," ",Вводные!H55+Вводные!I55) ->  | D48: * | E48: =IF(Вводные!F55+Вводные!G55=0," ",Вводные!F55+Вводные!G55) ->  | F48: =$C$2*I48 -> 0 | G48: =Вводные!E55 -> 0 | I48: =Вводные!D55 -> 0 | K48: =(IF(L48>0,1,0)+IF(L49>0,1,0))*I48 -> 0 | M48: =(C49*2+E49*2)/1000*I48 -> 0 | N48: 0 | O48: =IF(N48=1,C49,IF(N48=2,C49*2,0))*I48/1000 -> 0 | P48: =C49*E49*I48/1000000 -> 0 | Q48: =(IF(C48=1,C49,(IF(C48=2,C49*2,(IF(C48="1+R",C49,(IF(C48="1+кр",C49,(IF(C48="1+Rкр",C49,0)))))))))*I48/1000) -> 0 | R48: =(IF(C48="кр",C49,(IF(C48="2кр",C49*2,(IF(C48="1+кр",C49,0)))))*I48/1000) -> 0 | S48: =(IF(C48="R",C49,(IF(C48="2R",C49*2,(IF(C48="1+R",C49,0)))))*I48/1000) -> 0 | T48: =(IF(C48="Rкр",C49,(IF(C48="2Rкр",C49*2,(IF(C48="1+Rкр",C49,0)))))*I48/1000) -> 0 | U48: =C49/1000 -> 0
C49: =Вводные!B55 -> 0 | E49: =Вводные!C55 -> 0 | K49: =(IF(J48>0,1,0)+IF(J49>0,1,0))*I48 -> 0 | N49: 0 | O49: =IF(N49=1,E49,IF(N49=2,E49*2,0))*I48/1000 -> 0 | Q49: =(IF(E48=1,E49,(IF(E48=2,E49*2,(IF(E48="1+R",E49,(IF(E48="1+кр",E49,(IF(E48="1+Rкр",E49,0)))))))))*I48/1000) -> 0 | R49: =(IF(E48="кр",E49,(IF(E48="2кр",E49*2,(IF(E48="1+кр",E49,0)))))*I48/1000) -> 0 | S49: =(IF(E48="R",E49,(IF(E48="2R",E49*2,(IF(E48="1+R",E49,0)))))*I48/1000) -> 0 | T49: =(IF(E48="Rкр",E49,(IF(E48="2Rкр",E49*2,(IF(E48="1+Rкр",E49,0)))))*I48/1000) -> 0
A50: =(ROW()-3)/2+0.5 -> 24 | B50: =IF(Вводные!A57=0," ",Вводные!A57) ->  | C50: =IF(Вводные!H57+Вводные!I57=0," ",Вводные!H57+Вводные!I57) ->  | D50: * | E50: =IF(Вводные!F57+Вводные!G57=0," ",Вводные!F57+Вводные!G57) ->  | F50: =$C$2*I50 -> 0 | G50: =Вводные!E57 -> 0 | I50: =Вводные!D57 -> 0 | K50: =(IF(L50>0,1,0)+IF(L51>0,1,0))*I50 -> 0 | M50: =(C51*2+E51*2)/1000*I50 -> 0 | N50: 0 | O50: =IF(N50=1,C51,IF(N50=2,C51*2,0))*I50/1000 -> 0 | P50: =C51*E51*I50/1000000 -> 0 | Q50: =(IF(C50=1,C51,(IF(C50=2,C51*2,(IF(C50="1+R",C51,(IF(C50="1+кр",C51,(IF(C50="1+Rкр",C51,0)))))))))*I50/1000) -> 0 | R50: =(IF(C50="кр",C51,(IF(C50="2кр",C51*2,(IF(C50="1+кр",C51,0)))))*I50/1000) -> 0 | S50: =(IF(C50="R",C51,(IF(C50="2R",C51*2,(IF(C50="1+R",C51,0)))))*I50/1000) -> 0 | T50: =(IF(C50="Rкр",C51,(IF(C50="2Rкр",C51*2,(IF(C50="1+Rкр",C51,0)))))*I50/1000) -> 0 | U50: =C51/1000 -> 0
C51: =Вводные!B57 -> 0 | E51: =Вводные!C57 -> 0 | K51: =(IF(J50>0,1,0)+IF(J51>0,1,0))*I50 -> 0 | N51: 0 | O51: =IF(N51=1,E51,IF(N51=2,E51*2,0))*I50/1000 -> 0 | Q51: =(IF(E50=1,E51,(IF(E50=2,E51*2,(IF(E50="1+R",E51,(IF(E50="1+кр",E51,(IF(E50="1+Rкр",E51,0)))))))))*I50/1000) -> 0 | R51: =(IF(E50="кр",E51,(IF(E50="2кр",E51*2,(IF(E50="1+кр",E51,0)))))*I50/1000) -> 0 | S51: =(IF(E50="R",E51,(IF(E50="2R",E51*2,(IF(E50="1+R",E51,0)))))*I50/1000) -> 0 | T51: =(IF(E50="Rкр",E51,(IF(E50="2Rкр",E51*2,(IF(E50="1+Rкр",E51,0)))))*I50/1000) -> 0

Sheet Расходник
A1: Расход материалов на заказ № | D1: Кровать "БАРИН" | G1: 1400 | H1: 2000 | I1: 1 | J1: шт | L1: Отход по кромке | N1: 15 | O1: % | Q1: Список материалов | R1: ед. | S1: Примечание | T1: модель кровати | U1: 3 | V1: 2 | W1: тип основания | Y1: ширина матраса | AA1: длина матраса
D2: =VLOOKUP(V1,V2:W5,2) -> Подъёмный механизм + ящик бельё | Q2: ЛДСП | R2: шт. | S2: Спил пл-с | U2: 1 | V2: 1 | W2: Ортопедическое основание | Y2: 1200 | AA2: 1900
A3: Материал | B3: Цвет | C3: на 1 шт | D3: Всего | E3: ед. | F3: Материал | G3: Цвет | H3: на 1 шт | I3: Всего | J3: ед. | L3: Периметр обработки | M3: =A13 -> Зеркало | N3: =SUM(IF(Деталировка!$G$4:$G$561=M3,Деталировка!$M$4:$M$561))*$I$1 -> 0 | O3: м/п | P3: =SUM(IF(Деталировка!$G$4:$G$561=M3,Деталировка!$I$4:$I$561))*$I$1 -> 0 | Q3: ЛДСП доп | R3: к-т | S3: /11 | U3: 2 | V3: 2 | W3: Подъёмный механизм + ящик бельё | Y3: 1400 | AA3: 2000
A4: ЛДСП | B4: БЕЛЫЙ | C4: =SUM(IF(Деталировка!$G$4:$G$561=A4,Деталировка!$P$4:$P$561)) -> 2.108852 | D4: =C4*$I$1 -> 2.108852 | E4: м² | F4: ПВХ 0,4*19 | G4: =IF(Расходник!$H$4=0," ",Расходник!$B$4) -> БЕЛЫЙ | H4: =SUM(Деталировка!Q:Q) -> 9.532 | I4: =(H4*$N$1/100+H4)*$I$1 -> 10.9618 | J4: м/п | L4: Периметр обработки | M4: =A14 -> Стекло | N4: =SUM(IF(Деталировка!$G$4:$G$561=M4,Деталировка!$M$4:$M$561))*$I$1 -> 0 | O4: м/п | P4: =SUM(IF(Деталировка!$G$4:$G$561=M4,Деталировка!$I$4:$I$561))*$I$1 -> 0 | Q4: ЛМДФ | R4: м² | S4: /13 | T4: Кровать "БАРИН" | U4: 3 | V4: 3 | W4: Короб без дна + ДСП | Y4: 1500
A5: ЛДСП доп | C5: =SUM(IF(Деталировка!$G$4:$G$561=A5,Деталировка!$P$4:$P$561)) -> 0 | D5: 0 | E5: м² | F5: ПВХ 2,0*19 | G5: =IF(Расходник!$H$5=0," ",Расходник!$B$4) ->  | H5: =SUM(Деталировка!R:R) -> 0 | I5: =(H5*$N$1/100+H5)*$I$1 -> 0 | J5: м/п | L5: Спил | N5: =SUM(Деталировка!K:K)*I1 -> 0 | O5: шт | Q5: ЛМДФ доп | R5: м/п | S5: /16 | U5: 4 | Y5: 1600
A6: ЛМДФ | C6: =SUM(IF(Деталировка!$G$4:$G$561=A6,Деталировка!$P$4:$P$561)) -> 0 | D6: 0 | E6: м² | F6: ПВХ 0,4*35 | G6: =IF(Расходник!$H$6=0," ",Расходник!$B$4) ->  | I6: 0 | J6: м/п | L6: Пропил | N6: =SUM(Деталировка!O:O)*I1 -> 0 | O6: м/п | Q6: ДВП | S6: /20 | U6: 5 | Y6: 1800
A7: ЛМДФ доп | C7: =SUM(IF(Деталировка!$G$4:$G$561=A7,Деталировка!$P$4:$P$561)) -> 0 | D7: 0 | E7: м² | F7: ПВХ 2,0*35 | G7: =IF(Расходник!$H$7=0," ",Расходник!$B$4) ->  | I7: 0 | J7: м/п | L7: Стол-ца / стеновая пан | N7: =SUMIF(Деталировка!G:G,"столешница",Деталировка!I:I)+SUMIF(Деталировка!G:G,"стеновая пан",Деталировка!I:I) -> 0 | O7: шт | Q7: Столешница | S7: /25
A8: ДСП | C8: =SUM(IF(Деталировка!$G$4:$G$561=A8,Деталировка!$P$4:$P$561)) -> 4.85556 | D8: 4.85556 | E8: м² | F8: ПВХ 0,4*19 R | G8: =IF(Расходник!$H$8=0," ",Расходник!$B$4) ->  | H8: =SUM(Деталировка!S:S) -> 0 | I8: 0 | J8: м/п | L8: Фасады ЛМДФ | N8: =SUMIF(Деталировка!G:G,"лмдф",Деталировка!I:I)+SUMIF(Деталировка!G:G,"лмдф доп",Деталировка!I:I) -> 0 | O8: шт | Q8: Стеновая пан | S8: /34
A9: ДВП | B9: Белый | C9: =SUM(IF(Деталировка!$G$4:$G$561=A9,Деталировка!$P$4:$P$561)) -> 2.768128 | D9: 2.768128 | E9: м² | F9: ПВХ 2,0*19 R | G9: =IF(Расходник!$H$9=0," ",Расходник!$B$4) ->  | H9: =SUM(Деталировка!T:T) -> 0 | I9: 0 | J9: м/п | Q9: Зеркало
C10: =SUM(IF(Деталировка!$G$4:$G$561=A10,Деталировка!$P$4:$P$561)) -> 0 | D10: 0 | E10: м² | F10: ПВХ 0,4*35 R | G10: =IF(Расходник!$H$10=0," ",Расходник!$B$4) ->  | I10: 0 | J10: м/п | Q10: Стекло
A11: Столешница | C11: =SUM(IF(Деталировка!$G$4:$G$561=A11,Деталировка!$U$4:$U$561)) -> 0 | D11: 0 | E11: м/п | F11: ПВХ 2,0*35 R | G11: =IF(Расходник!$H$11=0," ",Расходник!$B$4) ->  | I11: 0 | J11: м/п
A12: Стеновая пан | C12: =SUM(IF(Деталировка!$G$4:$G$561=A12,Деталировка!$U$4:$U$561)) -> 0 | D12: =C12*$I$1 -> 0 | E12: м/п | F12: Меламин 35 | I12: 0 | J12: м/п
A13: Зеркало | C13: =SUM(IF(Деталировка!$G$4:$G$561=A13,Деталировка!$P$4:$P$561)) -> 0 | D13: =C13*$I$1 -> 0 | E13: м² | F13: Меламин | I13: 0 | J13: м/п
A14: Стекло | C14: =SUM(IF(Деталировка!$G$4:$G$561=A14,Деталировка!$P$4:$P$561)) -> 0 | D14: =C14*$I$1 -> 0 | E14: м² | F14: Кромка столеш | G14: =IF(B11=0," ",B11) ->  | I14: 0 | J14: м/п
A15: Список фурнитуры
A16: Наименование | F16: Примечание | H16: на 1 шт | I16: Всего | J16: ед.
A17: =IF(V1=1,"Ортопедическое основание",IF(V1=2,"Ортопедическое основание с опорной планкой","")) -> Ортопедическое основание с опорной планкой | F17: =G1 -> 1400 | G17: =H1 -> 2000 | H17: =IF(A17<>"",1,"") -> 1 | I17: =H17*$I$1 -> 1 | J17: =VLOOKUP(A17,Фурнитура!$1:$1048576,3,FALSE) -> шт
A18: =IF(V1=2,"Подъёмный механизм 559","") -> Подъёмный механизм 559 | H18: =IF(A18<>"",1,0) -> 1 | I18: 1 | J18: к
A19: =IF(A18="Подъёмный механизм 559","Газ-лифт","") -> Газ-лифт | F19: =IF(A19<>"",IF(G1>=1800,1000,IF(G1>=1600,800,600)),"") -> 600 | H19: =IF(A19<>"",2,0) -> 2 | I19: =H19*$I$1 -> 2 | J19: шт
A20: Евровинт 7*50 | H20: =IF(V1=1,0,IF(V1=2,36,IF(V1=3,24,"хуй"))) -> 36 | I20: =H20*$I$1 -> 36 | J20: =VLOOKUP(A20,Фурнитура!$1:$1048576,3,FALSE) -> шт
A22: Стразы | H22: 39 | I22: =H22*$I$1 -> 39 | J22: шт
A23: Шуруп 4*30 | H23: 30 | I23: =H23*$I$1 -> 30 | J23: шт
A24: Шуруп 4*40 | H24: 50 | I24: 50 | J24: шт
A25: Болт М6х40 цинк | F25: под ключ полнорезьбовой | H25: =IF(V1=1,0,IF(V1=2,4,IF(V1=3,0,"хуй"))) -> 4 | I25: 4 | J25: =VLOOKUP(A25,[1]Фурнитура!$1:$1048576,3,FALSE) -> 
A26: Шайба DIN 9021 М6 | F26: увеличенная | H26: =H25*3 -> 12 | I26: 12 | J26: =VLOOKUP(A26,[1]Фурнитура!$1:$1048576,3,FALSE) -> шт
A27: Гайка М6 цинк | H27: =H25 -> 4 | I27: 4 | J27: =VLOOKUP(A27,[1]Фурнитура!$1:$1048576,3,FALSE) -> 
A28: Поролон (30) | H28: 4 | I28: =H28*$I$1 -> 4 | J28: =VLOOKUP(A28,Фурнитура!$1:$1048576,3,FALSE) -> м2
A29: Поролон (50) | H29: 1 | I29: 1 | J29: =VLOOKUP(A29,Фурнитура!$1:$1048576,3,FALSE) -> м2
A30: Спанбонд | H30: 4 | I30: =H30*$I$1 -> 4 | J30: =VLOOKUP(A30,Фурнитура!$1:$1048576,3,FALSE) -> м/п
A31: Синтепон | F31: полиэфирное волокно | H31: 2 | I31: =H31*$I$1 -> 2 | J31: =VLOOKUP(A31,Фурнитура!$1:$1048576,3,FALSE) -> м/п
A32: К/з, (ЭКОКОЖА) | F32: КОРИЧНЕВЫЙ | H32: 5.5 | I32: 5.5 | J32: =VLOOKUP(A32,Фурнитура!$1:$1048576,3,FALSE) -> м/п
A33: Клей "Геркулес 55-60" | H33: 0.25 | I33: 0.25 | J33: =VLOOKUP(A33,Фурнитура!$1:$1048576,3,FALSE) -> кг
A35: Кронштейн кроватный | H35: =IF(V1=1,0,IF(V1=2,2,IF(V1=3,0,"хуй"))) -> 2 | I35: =H35*$I$1 -> 2 | J35: шт
A36: Опора угловая | F36: 160*160 | H36: 4 | I36: 4 | J36: шт
A37: Уголок кроватный | H37: =IF(V1=1,4,IF(V1=2,2,IF(V1=3,4,"хуй"))) -> 2 | I37: =H37*$I$1 -> 2 | J37: шт
A38: Подпятник мягкий | H38: =IF(V1=1,0,IF(V1=2,7,IF(V1=3,0,"хуй"))) -> 7 | I38: 7 | J38: шт
A40: ЛДСП | F40: =IF(Расходник!$B$4=0," ",Расходник!$B$4) -> БЕЛЫЙ | I40: =H40 -> 0 | J40: лист
A41: ДСП | F41: =IF(Расходник!$B$5=0," ",Расходник!$B$5) ->  | H41: 1 | I41: =H41 -> 1 | J41: лист
A42: ДВП | F42: =IF(Расходник!$B$9=0," ",Расходник!$B$9) -> Белый | I42: =H42 -> 0 | J42: лист

Sheet Вводные
E1: Комманда для макроса вставки строки Ctrl+Q
A5: Кровать | B5: =Расходник!H1+10 -> 2010 | C5: 300 | D5: 2 | E5: дсп
A7: Кровать | B7: =Расходник!G1+44 -> 1444 | C7: 300 | D7: 1 | E7: дсп
A9: Кровать | B9: =Расходник!G1+80 -> 1480 | C9: 435 | D9: 1 | E9: дсп
A11: Кровать | B11: =B9 -> 1480 | C11: 125 | D11: 1 | E11: дсп
A13: Кровать | B13: =B11 -> 1480 | C13: 100 | D13: 1 | E13: дсп
A15: Кровать | B15: =Расходник!G1+28 -> 1428 | C15: 100 | D15: 1 | E15: дсп
A17: Кровать | B17: =B15 -> 1428 | C17: 80 | D17: 2 | E17: дсп
A19: Кровать | B19: =B15 -> 1428 | C19: 60 | D19: 1 | E19: дсп
A21: Кровать | B21: =Расходник!G1+10 -> 1410 | C21: 300 | D21: 1 | E21: дсп
A23: Кровать | B23: 418 | C23: 150 | D23: 2 | E23: дсп
A25: Кровать | B25: 990 | C25: 150 | D25: 2 | E25: дсп
A27: Кровать | B27: 944 | C27: 150 | D27: 1 | E27: дсп
A29: Кровать 10мм | B29: 990 | C29: 130 | D29: 2 | E29: дсп
A31: Кровать | B31: =Расходник!G1-230 -> 1170 | C31: 460 | D31: 1 | E31: дсп
A33: Кровать | B33: 150 | C33: 990 | D33: 2 | E33: дсп
A35: Кровать | B35: 150 | C35: 944 | D35: 1 | E35: дсп
A37: Кровать | B37: 130 | C37: 990 | D37: 2 | E37: дсп
A39: =IF(Расходник!V1=2,"ящик бельё",IF(Расходник!V1=3,"короб","")) -> ящик бельё | B39: =Расходник!G1+10 -> 1410 | C39: 180 | D39: =IF(A39="",0,4) -> 4 | E39: =IF(A39="ящик бельё","лдсп",IF(A39="короб","дсп","")) -> лдсп | H39: =IF(A39="ящик бельё",1,0) -> 1
A41: =A39 -> ящик бельё | B41: =(Расходник!H1+10)/2-32 -> 973 | C41: =IF(A41="ящик бельё",161,IF(A41="короб",180,0)) -> 161 | D41: =IF(A41="ящик бельё",4,IF(A41="короб",6,0)) -> 4 | E41: =IF(A41="ящик бельё","лдсп",IF(A41="короб","дсп","")) -> лдсп | H41: =IF(A41="ящик бельё",1,0) -> 1
A43: =A39 -> ящик бельё | B43: =B41 -> 973 | C43: 80 | D43: =IF(A43="ящик бельё",4,0) -> 4 | E43: =IF(A43="ящик бельё","лдсп","") -> лдсп
A45: =A39 -> ящик бельё | B45: =B43 -> 973 | C45: 80 | D45: =IF(A45="ящик бельё",2,0) -> 2 | E45: =IF(A45="ящик бельё","лдсп","") -> лдсп
A47: =A39 -> ящик бельё | B47: =B39-2 -> 1408 | C47: =B45+10 -> 983 | D47: =IF(A47="ящик бельё",2,0) -> 2 | E47: =IF(A47="ящик бельё","двп","") -> двп
A49: =IF(A39="короб",A39,"") ->  | B49: =IF(A49="короб",Расходник!G1,0) -> 0 | C49: =IF(A49="короб",Расходник!H1/2+3,0) -> 0 | D49: =IF(A49="короб",2,0) -> 0 | E49: =IF(A49="короб","дсп","") -> 
